bitfinex/quotes_SOLUSD_20230116
["timestamp","ask_amount","ask_price","bid_price","bid_amount"]
[1673856912222,20.0,23.437,23.404,17.0]
[1673856912746,20.0,23.438,23.405,20.0]
[1673856912958,20.0,23.438,23.406,17.0]
[1673856913374,21.46196354,23.437,23.407,20.0]
[1673856913581,20.0,23.438,23.408,17.0]
[1673856914548,20.0,23.438,23.41,20.77]
[1673856914735,20.0,23.438,23.411,17.0]
[1673856915377,20.0,23.438,23.412,20.0]
[1673856915585,20.0,23.438,23.413,17.0]
[1673856916202,20.0,23.438,23.414,20.0]
[1673856916413,20.0,23.438,23.415,17.0]
[1673856916858,20.0,23.438,23.416,20.0]
[1673856917049,20.0,23.438,23.417,17.0]
[1673856917257,20.0,23.438,23.415,17.0]
[1673856917793,20.0,23.438,23.41,20.77]
[1673856918008,20.0,23.438,23.4,82.75]
[1673856918009,20.0,23.438,23.39,20.76]
[1673856918196,20.78,23.43,23.391,4.31504]
[1673856918411,17.0,23.429,23.411,20.0]
[1673856918639,21.46196354,23.429,23.411,20.0]
[1673856918953,20.78,23.43,23.411,20.0]
[1673856919264,21.46196354,23.434,23.405,20.0]
[1673856919581,20.0,23.438,23.41,20.72]
[1673856920528,20.0,23.438,23.411,37.44780121]
[1673856920843,20.0,23.455,23.42,20.78]
[1673856921051,20.0,23.458,23.43,20.57]
[1673856921263,20.0,23.458,23.431,20.0]
[1673856921460,20.0,23.458,23.44,20.67]
[1673856921671,20.0,23.458,23.441,20.0]
[1673856921908,20.0,23.458,23.442,17.0]
[1673856922521,20.0,23.468,23.442,17.0]
[1673856922733,41.46196354,23.468,23.441,20.0]
[1673856922956,41.46196354,23.466,23.436,20.0]
[1673856923152,41.46196354,23.466,23.42,20.78]
[1673856923369,41.46196354,23.466,23.421,4.30951]
[1673856923370,20.0,23.437,23.421,4.30951]
[1673856924851,20.69,23.46,23.421,4.30951]
[1673856925063,20.69,23.46,23.421,20.0]
[1673856925381,21.46196354,23.459,23.411,143.0500406]
[1673856925581,20.0,23.463,23.422,20.4500406]
[1673856925788,4.23884,23.462,23.423,20.0]
[1673856926220,20.58,23.46,23.423,4.30914]
[1673856926529,20.0,23.463,23.421,20.0]
[1673856926740,20.0,23.463,23.423,20.4500406]
[1673856926946,20.0,23.463,23.424,37.0]
[1673856927168,20.0,23.463,23.43,20.72]
[1673856927352,20.0,23.463,23.431,37.0]
[1673856927559,20.0,23.463,23.44,20.67]
[1673856927774,20.0,23.463,23.441,37.0]
[1673856927998,20.0,23.463,23.442,4.30565]
[1673856928214,20.0,23.463,23.443,17.0]
[1673856928421,20.0,23.463,23.444,20.0]
[1673856928612,20.0,23.463,23.445,17.0]
[1673856928825,20.0,23.463,23.445,38.51850955]
[1673856929047,20.0,23.466,23.465,34.36552106]
[1673856929245,20.0,23.47,23.465,54.36552106]
[1673856929458,20.0,23.47,23.466,20.0]
[1673856929666,20.0,23.47,23.466,57.46736155]
[1673856929875,20.0,23.47,23.462,43.43654913]
[1673856930418,20.0,23.47,23.464,41.23863046]
[1673856930627,20.0,23.47,23.465,17.0]
[1673856930836,20.0,23.47,23.45,20.76]
[1673856931033,20.0,23.47,23.454,41.23863046]
[1673856931248,20.0,23.47,23.43,20.77]
[1673856931454,20.0,23.47,23.431,4.30767]
[1673856932091,20.0,23.47,23.43,20.77]
[1673856932626,20.0,23.436,23.43,20.77]
[1673856933242,20.0,23.436,23.43,41.2200406]
[1673856933454,20.0,23.436,23.43,20.77]
[1673856934302,20.0,23.436,23.422,55.94267106]
[1673856934503,20.0,23.436,23.42,20.59]
[1673856934924,40.78,23.47,23.42,24.8997]
[1673856935135,4.23884,23.469,23.421,35.49263046]
[1673856935356,17.0,23.468,23.42,24.8997]
[1673856935674,21.23884,23.468,23.421,20.0]
[1673856935867,20.61,23.46,23.415,20.0]
[1673856936079,20.78,23.45,23.415,20.0]
[1673856936303,20.78,23.45,23.401,122.6]
[1673856936496,20.0,23.447,23.402,4.31301]
[1673856936705,20.58,23.44,23.402,4.31301]
[1673856936934,20.78,23.42,23.381,20.0]
[1673856937141,20.61,23.43,23.381,20.0]
[1673856937471,21.46196354,23.423,23.381,20.0]
[1673856937680,4.23884,23.429,23.381,20.0]
[1673856937896,44.23884,23.429,23.381,20.0]
[1673856938081,24.23884,23.429,23.381,20.0]
[1673856938297,21.46196354,23.428,23.381,20.0]
[1673856938508,4.23884,23.427,23.381,20.0]
[1673856938735,20.78,23.42,23.381,20.0]
[1673856939144,42.24196354,23.42,23.381,20.0]
[1673856939348,42.24196354,23.42,23.411,20.0]
[1673856939768,52.81946535,23.419,23.381,20.0]
[1673856939985,20.78,23.4,23.381,20.0]
[1673856940708,21.46196354,23.399,23.381,20.0]
[1673856941152,20.78,23.4,23.381,20.0]
[1673856941765,42.24196354,23.4,23.381,20.0]
[1673856941988,20.78,23.4,23.381,20.0]
[1673856942196,118.7478,23.419,23.381,20.0]
[1673856942616,140.20976354,23.419,23.381,20.0]
[1673856942823,118.7478,23.419,23.381,20.0]
[1673856943251,118.7478,23.419,23.383,37.0]
[1673856944395,118.7478,23.419,23.383,20.0]
[1673856944712,118.7478,23.419,23.381,20.0]
[1673856944920,140.20976354,23.419,23.381,20.0]
[1673856945341,20.58,23.41,23.381,20.0]
[1673856945761,41.46196354,23.409,23.381,20.0]
[1673856946177,21.46196354,23.408,23.381,20.0]
[1673856946395,20.58,23.44,23.39,20.78]
[1673856946723,39.06869757,23.417,23.383,21.0384169]
[1673856946941,120.35344,23.439,23.384,17.0]
[1673856947149,21.46196354,23.424,23.385,20.0]
[1673856947335,20.61,23.42,23.384,88.01224877]
[1673856947548,20.78,23.41,23.384,36.83898456]
[1673856947760,20.78,23.41,23.381,20.0]
[1673856948171,4.23884,23.419,23.381,20.0]
[1673856948389,21.46196354,23.414,23.381,20.0]
[1673856948810,1.46196354,23.414,23.37,20.78]
[1673856949029,4.23884,23.419,23.36,82.93]
[1673856949030,20.58,23.41,23.36,20.57]
[1673856949244,20.58,23.41,23.371,21.0384169]
[1673856949771,21.46196354,23.409,23.36,24.89077]
[1673856949980,20.58,23.4,23.353,21.0384169]
[1673856950181,20.58,23.4,23.354,4.32188]
[1673856950392,21.46196354,23.409,23.361,21.0384169]
[1673856950719,116.1146,23.418,23.37,20.77]
[1673856950925,21.46196354,23.415,23.362,4.3204]
[1673856951138,31.90079868,23.417,23.348,108.7214]
[1673856951139,21.46196354,23.409,23.35,20.75]
[1673856951449,4.23884,23.408,23.353,21.0384169]
[1673856951652,4.23884,23.408,23.353,25.3604769]
[1673856951653,41.56409453,23.408,23.353,25.3604769]
[1673856951865,37.32525453,23.408,23.36,20.58]
[1673856952085,21.46196354,23.408,23.36,20.58]
[1673856952273,20.0,23.407,23.361,21.46196354]
[1673856952489,20.77,23.4,23.354,4.32188]
[1673856952700,20.77,23.4,23.35,20.58]
[1673856952701,20.0,23.399,23.351,20.0]
[1673856953040,21.46196354,23.399,23.355,21.46196354]
[1673856953232,37.32525453,23.4,23.356,4.32151]
[1673856953550,21.46196354,23.41,23.36,20.8]
[1673856953749,20.0,23.409,23.36,20.8]
[1673856953966,116.1146,23.418,23.361,21.32058]
[1673856954177,137.57656354,23.418,23.37,20.8]
[1673856954397,137.57656354,23.418,23.371,17.0]
[1673856954713,4.23884,23.417,23.372,20.0]
[1673856954922,20.8,23.45,23.4,20.63]
[1673856955137,4.23884,23.449,23.4,20.63]
[1673856955324,4.23884,23.449,23.41,20.71]
[1673856955536,111.4338,23.468,23.411,37.0]
[1673856955795,111.4338,23.468,23.412,4.31117]
[1673856956088,111.4338,23.468,23.413,17.0]
[1673856956089,20.0,23.449,23.413,17.0]
[1673856956311,20.0,23.449,23.414,20.0]
[1673856956491,4.23884,23.448,23.415,17.0]
[1673856956705,41.46196354,23.449,23.416,20.0]
[1673856956915,20.0,23.449,23.417,17.0]
[1673856957124,20.0,23.419,23.417,17.0]
[1673856957336,20.0,23.419,23.418,20.0]
[1673856957569,20.0,23.419,23.418,37.0]
[1673856958179,20.0,23.419,23.418,20.0]
[1673856958401,20.0,23.419,23.411,20.0]
[1673856958607,20.0,23.419,23.401,20.0]
[1673856959038,20.0,23.419,23.39,20.71]
[1673856959750,20.0,23.419,23.391,4.31504]
[1673856959966,20.0,23.419,23.4,20.8]
[1673856960196,20.0,23.399,23.39,20.78]
[1673856960705,20.0,23.399,23.391,20.0]
[1673856960919,20.0,23.399,23.39,20.78]
[1673856961123,20.0,23.399,23.38,20.63]
[1673856961547,20.0,23.399,23.38,20.8]
[1673856961878,20.0,23.399,23.39,20.61]
[1673856962799,20.0,23.408,23.391,142.6]
[1673856963011,20.0,23.419,23.4,103.73]
[1673856963259,20.0,23.419,23.4,20.69]
[1673856963762,20.0,23.419,23.391,20.0]
[1673856963976,21.46196354,23.418,23.38,20.8]
[1673856964196,20.0,23.425,23.383,20.0]
[1673856964371,20.0,23.424,23.383,20.0]
[1673856964806,55.20217535,23.423,23.383,20.0]
[1673856965123,20.68,23.41,23.383,20.0]
[1673856965337,41.23884,23.409,23.36,20.8]
[1673856965535,4.23884,23.408,23.36,20.8]
[1673856965739,20.68,23.4,23.35,20.8]
[1673856965949,17.0,23.399,23.35,20.8]
[1673856966160,4.23884,23.398,23.35,20.8]
[1673856966365,4.23884,23.398,23.361,20.0]
[1673856966366,21.46196354,23.398,23.361,20.0]
[1673856966804,20.68,23.4,23.361,20.0]
[1673856967210,25.70080354,23.399,23.361,20.0]
[1673856967424,20.0,23.418,23.37,20.8]
[1673856967651,27.37333202,23.398,23.37,20.8]
[1673856968053,20.0,23.407,23.385,20.0]
[1673856968258,20.62,23.4,23.385,20.0]
[1673856968479,21.46196354,23.398,23.361,20.0]
[1673856968897,20.8,23.39,23.361,20.0]
[1673856969315,50.80849789,23.389,23.361,20.0]
[1673856969535,88.90457636,23.389,23.361,20.0]
[1673856969754,37.47294514,23.388,23.361,20.0]
[1673856969972,88.28144303,23.388,23.361,20.0]
[1673856970184,50.80849789,23.387,23.361,20.0]
[1673856970400,36.88534514,23.387,23.361,20.0]
[1673856970596,48.40418514,23.386,23.361,20.0]
[1673856970929,21.23884,23.385,23.361,20.0]
[1673856971112,20.8,23.38,23.361,20.0]
[1673856971439,48.14851847,23.384,23.361,20.0]
[1673856971656,20.8,23.39,23.351,20.0]
[1673856971844,112.7528,23.399,23.351,20.0]
[1673856972050,31.70666535,23.389,23.351,20.0]
[1673856972281,20.8,23.38,23.351,20.0]
[1673856972474,4.23884,23.379,23.351,20.0]
[1673856972688,24.23884,23.379,23.351,20.0]
[1673856972896,21.46196354,23.378,23.351,20.0]
[1673856973124,24.23884,23.377,23.362,20.0]
[1673856973321,20.8,23.37,23.362,11.2981]
[1673856973536,4.23884,23.369,23.351,20.0]
[1673856973855,102.67554991,23.368,23.351,20.0]
[1673856974071,4.23884,23.367,23.351,20.0]
[1673856974280,102.07539403,23.367,23.351,20.0]
[1673856974476,20.8,23.36,23.347,20.0]
[1673856974888,83.20780201,23.359,23.347,20.0]
[1673856975217,65.60812868,23.358,23.347,20.0]
[1673856975425,41.23884,23.357,23.314,21.70305019]
[1673856975753,45.70080354,23.356,23.314,21.70305019]
[1673856975966,20.64,23.35,23.321,92.2103161]
[1673856976489,20.64,23.35,23.321,113.67227964]
[1673856976676,4.23884,23.349,23.321,92.2103161]
[1673856977099,43.05193847,23.348,23.321,92.2103161]
[1673856977309,92.55907403,23.348,23.321,92.2103161]
[1673856977520,20.8,23.34,23.321,92.2103161]
[1673856977743,128.19003323,23.347,23.321,92.2103161]
[1673856978064,120.0,23.34,23.321,92.2103161]
[1673856978264,40.70933847,23.346,23.321,92.2103161]
[1673856978473,6.79546278,23.339,23.322,52.84733021]
[1673856978679,6.79546278,23.339,23.33,20.61]
[1673856978885,120.0,23.341,23.33,20.61]
[1673856979090,120.0,23.341,23.321,92.2103161]
[1673856979314,20.6,23.37,23.33,21.46196354]
[1673856979524,4.23884,23.369,23.33,21.46196354]
[1673856979719,4.23884,23.369,23.331,20.0]
[1673856979939,120.0,23.365,23.322,41.46196354]
[1673856980150,20.0,23.364,23.324,21.46196354]
[1673856980457,120.0,23.389,23.35,20.78]
[1673856980690,4.23884,23.388,23.36,83.03]
[1673856980882,4.23884,23.388,23.371,34.14545111]
[1673856981097,108.4272,23.432,23.372,24.31855]
[1673856981303,4.23884,23.431,23.373,37.0]
[1673856981511,20.0,23.399,23.373,17.0]
[1673856981724,20.0,23.399,23.374,20.0]
[1673856982171,41.46196354,23.398,23.35,20.71]
[1673856982377,41.46196354,23.398,23.351,17.0]
[1673856982587,21.46196354,23.397,23.351,17.0]
[1673856982797,120.0,23.373,23.35,20.71]
[1673856983119,20.64,23.39,23.34,20.89]
[1673856983536,41.16439899,23.379,23.343,20.0]
[1673856983749,41.16439899,23.379,23.35,20.8]
[1673856983959,21.46196354,23.378,23.351,20.0]
[1673856984170,41.16439899,23.379,23.343,20.0]
[1673856984500,120.0,23.341,23.34,205.97]
[1673856984689,45.0,23.341,23.334,20.0]
[1673856984901,21.46196354,23.378,23.334,41.46196354]
[1673856985222,4.23884,23.377,23.334,41.46196354]
[1673856985550,20.0,23.385,23.335,4.32539]
[1673856985744,45.82087765,23.382,23.35,20.79]
[1673856985956,20.0,23.384,23.35,20.79]
[1673856986178,20.0,23.378,23.35,20.79]
[1673856986385,20.0,23.378,23.351,17.0]
[1673856986701,20.0,23.378,23.351,20.0]
[1673856986910,20.0,23.378,23.35,20.79]
[1673856987117,20.0,23.378,23.34,83.2]
[1673856987118,20.0,23.378,23.351,20.0]
[1673856987311,20.0,23.368,23.341,21.46196354]
[1673856987740,20.0,23.368,23.35,20.63]
[1673856987972,20.0,23.368,23.36,20.8]
[1673856988280,20.0,23.368,23.361,20.0]
[1673856988494,20.0,23.368,23.361,17.0]
[1673856988692,20.0,23.368,23.362,20.0]
[1673856988909,20.0,23.368,23.363,17.0]
[1673856989311,20.0,23.368,23.364,20.0]
[1673856989522,20.0,23.368,23.365,17.0]
[1673856989735,20.0,23.368,23.366,20.0]
[1673856989963,20.0,23.368,23.367,17.0]
[1673856990377,20.0,23.368,23.367,37.0]
[1673856990588,20.0,23.378,23.367,37.0]
[1673856990802,20.0,23.378,23.37,20.79]
[1673856991004,20.0,23.378,23.371,37.0]
[1673856991217,7.0868,23.378,23.371,37.0]
[1673856991421,20.0,23.385,23.371,37.0]
[1673856991630,20.0,23.385,23.38,20.63]
[1673856991840,20.0,23.388,23.381,37.0]
[1673856992062,20.0,23.395,23.381,37.0]
[1673856992274,19.5,23.395,23.381,37.0]
[1673856992494,20.0,23.418,23.382,30.08683657]
[1673856992802,117.1327,23.436,23.4,20.8]
[1673856993004,199.06552792,23.482,23.4,20.8]
[1673856993005,120.0,23.453,23.41,20.63]
[1673856993324,120.0,23.453,23.42,20.63]
[1673856993531,1.75273515,23.45,23.421,20.0]
[1673856993747,1.75273515,23.45,23.422,17.0]
[1673856993938,1.75273515,23.45,23.43,20.8]
[1673856994153,1.75273515,23.45,23.41,20.63]
[1673856994360,21.46196354,23.449,23.411,37.0]
[1673856994781,1.75273515,23.45,23.42,20.78]
[1673856994992,120.0,23.411,23.405,31.48907115]
[1673856995206,120.0,23.411,23.4,20.8]
[1673856995207,20.8,23.44,23.39,20.79]
[1673856995433,20.8,23.44,23.273,80.3853]
[1673856995434,21.46196354,23.417,23.37,20.71]
[1673856995625,20.0,23.376,23.37,20.71]
[1673856996042,112.66224,23.416,23.37,20.71]
[1673856996268,108.4234,23.416,23.39,20.63]
[1673856996482,20.0,23.438,23.39,20.63]
[1673856996689,21.46196354,23.416,23.39,20.63]
[1673856996899,32.95087765,23.424,23.39,20.63]
[1673856997099,32.95087765,23.424,23.4,20.8]
[1673856997309,4.23884,23.437,23.4,20.8]
[1673856997525,4.23884,23.437,23.401,20.0]
[1673856997730,25.70080354,23.437,23.41,20.71]
[1673856998455,25.70080354,23.437,23.401,20.0]
[1673856999210,20.0,23.407,23.401,20.0]
[1673857000365,169.7284,23.465,23.409,20.0]
[1673857000578,169.7284,23.465,23.43,20.61]
[1673857000797,56.6651,23.465,23.431,37.0]
[1673857000982,21.46196354,23.464,23.431,37.0]
[1673857001629,21.46196354,23.464,23.42,20.96]
[1673857001831,4.23884,23.463,23.421,37.0]
[1673857002040,4.23884,23.463,23.43,20.63]
[1673857002376,21.46196354,23.462,23.44,20.63]
[1673857002571,56.6651,23.465,23.441,37.0]
[1673857002992,20.0,23.452,23.441,37.0]
[1673857003181,21.46196354,23.471,23.441,37.0]
[1673857003831,20.0,23.448,23.441,37.0]
[1673857004261,20.0,23.448,23.43,20.8]
[1673857004996,20.0,23.448,23.44,20.8]
[1673857005416,20.0,23.448,23.44,104.21]
[1673857005815,20.0,23.448,23.441,17.0]
[1673857006019,110.813,23.488,23.44,104.21]
[1673857006340,110.813,23.488,23.42,229.59501346]
[1673857006341,20.64,23.48,23.43,48.35872056]
[1673857006550,21.46196354,23.487,23.45,20.8]
[1673857006776,21.46196354,23.486,23.45,20.8]
[1673857006977,120.0,23.487,23.45,20.8]
[1673857007193,21.46196354,23.49,23.45,20.8]
[1673857007408,120.0,23.503,23.47,20.8]
[1673857007607,120.0,23.507,23.471,20.0]
[1673857008033,21.46196354,23.508,23.472,17.0]
[1673857008249,20.0,23.498,23.473,20.0]
[1673857008458,20.0,23.498,23.474,17.0]
[1673857010024,20.0,23.476,23.474,17.0]
[1673857010235,20.0,23.476,23.475,20.0]
[1673857010464,20.0,23.476,23.475,37.0]
[1673857010665,20.0,23.498,23.475,37.0]
[1673857010876,20.0,23.498,23.49,20.61]
[1673857011083,20.0,23.498,23.491,17.0]
[1673857011291,20.0,23.498,23.49,20.61]
[1673857011830,20.0,23.498,23.491,17.0]
[1673857012259,20.0,23.498,23.492,20.0]
[1673857012566,20.0,23.498,23.493,17.0]
[1673857012797,20.0,23.498,23.494,20.0]
[1673857012974,20.0,23.498,23.495,17.0]
[1673857013511,20.0,23.498,23.494,20.0]
[1673857013710,20.0,23.498,23.491,20.0]
[1673857013907,20.0,23.498,23.47,20.71]
[1673857014551,21.46196354,23.507,23.47,20.71]
[1673857014758,20.0,23.506,23.47,20.71]
[1673857015092,20.0,23.519,23.47,20.71]
[1673857015284,21.46196354,23.506,23.474,20.0]
[1673857015497,21.46196354,23.506,23.48,83.05]
[1673857015695,20.0,23.515,23.5,20.8]
[1673857015906,20.0,23.515,23.49,20.71]
[1673857016121,20.0,23.515,23.481,24.2985]
[1673857016122,20.0,23.502,23.491,20.0]
[1673857016344,20.0,23.502,23.481,20.0]
[1673857016877,20.0,23.502,23.48,20.78]
[1673857016878,20.0,23.502,23.476,20.0]
[1673857017072,20.8,23.52,23.476,20.0]
[1673857017273,4.23884,23.519,23.476,20.0]
[1673857017485,24.23884,23.519,23.476,20.0]
[1673857017696,17.0,23.518,23.476,20.0]
[1673857017924,20.8,23.51,23.492,20.0]
[1673857018120,20.8,23.5,23.476,20.0]
[1673857018443,41.23884,23.499,23.476,20.0]
[1673857018652,4.23884,23.498,23.481,20.0]
[1673857018867,17.0,23.497,23.476,20.0]
[1673857019058,20.0,23.496,23.476,20.0]
[1673857019269,17.0,23.495,23.485,20.0]
[1673857019481,24.23884,23.494,23.476,20.0]
[1673857019706,21.23884,23.493,23.476,20.0]
[1673857019917,21.23884,23.493,23.475,20.0]
[1673857019918,4.23884,23.492,23.475,20.0]
[1673857020132,20.8,23.49,23.471,20.0]
[1673857020337,41.23884,23.489,23.44,20.7]
[1673857020561,4.23884,23.488,23.45,20.8]
[1673857020772,4.23884,23.488,23.462,20.0]
[1673857020976,102.16114,23.499,23.462,20.0]
[1673857021187,20.8,23.49,23.462,20.0]
[1673857021406,20.8,23.48,23.462,20.0]
[1673857021720,101.76688706,23.489,23.462,20.0]
[1673857021935,37.84756157,23.479,23.462,20.0]
[1673857022128,20.8,23.49,23.462,20.0]
[1673857022328,27.33848285,23.497,23.462,20.0]
[1673857022543,102.16114,23.499,23.462,20.0]
[1673857022754,37.84756157,23.496,23.462,41.43501346]
[1673857022963,37.84756157,23.496,23.463,20.0]
[1673857023183,31.78367277,23.498,23.463,20.0]
[1673857023184,20.8,23.49,23.463,20.0]
[1673857023607,102.16114,23.499,23.463,20.0]
[1673857023925,37.84756157,23.489,23.463,41.43501346]
[1673857024143,20.0,23.493,23.47,20.63]
[1673857024333,20.0,23.493,23.471,41.30033]
[1673857024543,20.0,23.49,23.472,4.30015]
[1673857024767,20.0,23.488,23.473,17.0]
[1673857024963,20.0,23.488,23.473,42.73497346]
[1673857025173,20.0,23.493,23.48,20.8]
[1673857025494,20.0,23.493,23.481,42.73351346]
[1673857025708,20.0,23.493,23.482,24.29832]
[1673857025922,20.0,23.493,23.483,21.29813]
[1673857026132,20.0,23.493,23.484,24.29795]
[1673857026339,20.0,23.495,23.485,17.0]
[1673857026554,20.0,23.495,23.486,4.29758]
[1673857026756,20.0,23.495,23.487,17.0]
[1673857026967,20.0,23.495,23.486,4.29758]
[1673857027171,20.0,23.495,23.464,20.0]
[1673857027374,20.0,23.497,23.465,4.30143]
[1673857027584,20.0,23.497,23.465,25.76339354]
[1673857027811,39.58089491,23.502,23.466,21.46196354]
[1673857028022,39.58089491,23.502,23.467,4.30106]
[1673857028345,118.8264,23.509,23.47,20.7]
[1673857028553,20.0,23.518,23.48,20.8]
[1673857028747,20.0,23.518,23.49,20.8]
[1673857028960,46.91932549,23.514,23.5,20.8]
[1673857029161,20.0,23.518,23.501,24.29484]
[1673857029485,20.0,23.529,23.502,4.29466]
[1673857029693,20.0,23.529,23.51,20.79]
[1673857029907,20.0,23.529,23.511,41.29301]
[1673857030118,20.0,23.529,23.511,37.0]
[1673857030328,20.0,23.528,23.511,37.0]
[1673857030738,20.0,23.528,23.512,21.46196354]
[1673857031083,20.0,23.528,23.513,41.29265]
[1673857031385,20.0,23.528,23.513,20.0]
[1673857031582,20.0,23.528,23.511,20.0]
[1673857031798,20.0,23.528,23.512,4.29283]
[1673857032218,20.0,23.529,23.512,4.29283]
[1673857032427,20.0,23.539,23.512,4.29283]
[1673857032632,20.0,23.539,23.5,83.04]
[1673857032633,20.0,23.537,23.501,20.0]
[1673857032846,17.0,23.531,23.502,4.29466]
[1673857033062,17.010881,23.529,23.501,20.0]
[1673857033588,17.010881,23.529,23.512,20.0]
[1673857033998,5.0,23.532,23.512,20.0]
[1673857034217,20.0,23.535,23.514,20.0]
[1673857034425,117.079,23.54,23.512,20.0]
[1673857034629,21.46196354,23.549,23.512,20.0]
[1673857034839,110.8097,23.555,23.512,20.0]
[1673857035060,21.46196354,23.552,23.512,20.0]
[1673857035263,21.46196354,23.552,23.513,20.0]
[1673857035475,21.46196354,23.552,23.514,17.0]
[1673857035685,110.8097,23.555,23.515,24.29228]
[1673857035885,110.8097,23.555,23.52,20.8]
[1673857036102,20.0,23.558,23.53,20.71]
[1673857036311,20.0,23.558,23.531,37.0]
[1673857036515,20.0,23.558,23.532,4.28918]
[1673857036740,20.0,23.558,23.533,17.0]
[1673857036948,20.0,23.558,23.54,20.8]
[1673857037151,20.0,23.558,23.541,17.0]
[1673857037481,20.0,23.558,23.542,4.28736]
[1673857037696,20.0,23.558,23.542,24.28736]
[1673857037880,20.0,23.558,23.55,20.7]
[1673857038097,20.0,23.554,23.551,17.0]
[1673857038322,20.0,23.554,23.552,20.0]
[1673857038846,20.0,23.554,23.546,54.79413655]
[1673857039063,20.0,23.554,23.552,20.0]
[1673857039367,20.0,23.554,23.541,20.0]
[1673857039568,20.0,23.554,23.541,40.0]
[1673857039780,16.984061,23.555,23.541,20.0]
[1673857039984,16.984061,23.555,23.541,4.28754]
[1673857040734,16.984061,23.555,23.521,20.0]
[1673857040735,30.08549941,23.554,23.521,20.0]
[1673857040932,16.984061,23.555,23.521,20.0]
[1673857041276,20.8,23.57,23.522,4.29101]
[1673857041459,21.46196354,23.564,23.547,20.0]
[1673857041666,30.08549941,23.568,23.547,20.0]
[1673857041898,38.46196354,23.569,23.547,20.0]
[1673857042095,38.20407349,23.577,23.548,21.46196354]
[1673857042408,20.0,23.575,23.572,27.47381043]
[1673857042625,20.0,23.575,23.569,38.46196354]
[1673857042626,16.959206,23.581,23.575,29.01707282]
[1673857042819,16.959206,23.581,23.576,4.28118]
[1673857043034,16.959206,23.581,23.56,20.72]
[1673857043242,16.959206,23.581,23.561,24.2839]
[1673857043567,16.959206,23.581,23.562,4.28372]
[1673857043775,20.0,23.568,23.54,20.69]
[1673857044007,20.0,23.568,23.553,41.82322912]
[1673857044186,16.959206,23.581,23.553,41.82322912]
[1673857044400,28.72384474,23.568,23.541,4.28754]
[1673857044716,20.8,23.58,23.53,20.8]
[1673857044927,20.0,23.579,23.574,20.0]
[1673857045149,20.0,23.579,23.55,20.0]
[1673857045359,40.0,23.57,23.55,20.0]
[1673857045577,20.8,23.56,23.55,20.0]
[1673857045770,20.8,23.56,23.521,20.0]